[Event "Late-Titled-Tuesday-Blitz-June-18-2024"]
[Site "Chess.com"]
[Date "2024.06.18"]
[Round "2"]
[White "Mysterio47"]
[Black "Zampronha1971"]
[Result "1-0"]
[WhiteElo "2839"]
[BlackElo "2407"]
[TimeControl "180+1"]
[EndTime "14:20:21 PDT"]
[Termination "Mysterio47 won on time"]

1. e4 {[%clk 0:03:00.9]} 1... c5 {[%clk 0:02:59.2]} 2. Nf3 {[%clk 0:02:57.9]}
2... e6 {[%clk 0:02:59.6]} 3. d4 {[%clk 0:02:58.3]} 3... cxd4 {[%clk 0:03:00.3]}
4. Nxd4 {[%clk 0:02:59.1]} 4... Nc6 {[%clk 0:03:00.5]} 5. Nc3 {[%clk 0:02:58.9]}
5... Qc7 {[%clk 0:03:00.7]} 6. Be3 {[%clk 0:02:59.2]} 6... a6 {[%clk 0:03:00.7]}
7. Qf3 {[%clk 0:02:59.8]} 7... Nf6 {[%clk 0:02:58.7]} 8. O-O-O {[%clk
0:02:53.8]} 8... b5 {[%clk 0:02:57]} 9. Nxc6 {[%clk 0:02:47.8]} 9... dxc6 {[%clk
0:02:55.6]} 10. Bd3 {[%clk 0:02:41.7]} 10... b4 {[%clk 0:02:54.4]} 11. Ne2
{[%clk 0:02:39.6]} 11... c5 {[%clk 0:02:52.5]} 12. Bc4 {[%clk 0:02:35.9]} 12...
Bb7 {[%clk 0:02:51.7]} 13. Ng3 {[%clk 0:02:35.5]} 13... Be7 {[%clk 0:02:40.6]}
14. Bf4 {[%clk 0:02:31.7]} 14... Qb6 {[%clk 0:02:36.2]} 15. Rhe1 {[%clk
0:02:21.7]} 15... O-O {[%clk 0:02:34.2]} 16. Nh5 {[%clk 0:02:21.4]} 16... Nxh5
{[%clk 0:02:27.8]} 17. Qxh5 {[%clk 0:02:22.3]} 17... g6 {[%clk 0:02:13.7]} 18.
Qh6 {[%clk 0:02:18]} 18... Bf6 {[%clk 0:02:12.6]} 19. Rd6 {[%clk 0:02:13.3]}
19... Qa5 {[%clk 0:02:05.3]} 20. e5 {[%clk 0:01:45.9]} 20... Bg7 {[%clk
0:02:04.9]} 21. Qh3 {[%clk 0:01:44.4]} 21... Rad8 {[%clk 0:02:01.8]} 22. Red1
{[%clk 0:01:44.1]} 22... Bd5 {[%clk 0:01:33.9]} 23. Qd3 {[%clk 0:01:37.6]} 23...
Rxd6 {[%clk 0:01:26.4]} 24. exd6 {[%clk 0:01:38.5]} 24... Bd4 {[%clk 0:01:14.9]}
25. Be3 {[%clk 0:01:12.4]} 25... Bxe3+ {[%clk 0:01:10.6]} 26. fxe3 {[%clk
0:01:11.3]} 26... Rd8 {[%clk 0:01:07.6]} 27. e4 {[%clk 0:01:11.6]} 27... Bxc4
{[%clk 0:01:00.6]} 28. Qxc4 {[%clk 0:01:12.5]} 28... Qb5 {[%clk 0:00:59]} 29. b3
{[%clk 0:00:57.6]} 29... Qxc4 {[%clk 0:00:56.3]} 30. bxc4 {[%clk 0:00:58.5]}
30... Kf8 {[%clk 0:00:56]} 31. Kb2 {[%clk 0:00:56.6]} 31... Ke8 {[%clk
0:00:55.5]} 32. e5 {[%clk 0:00:54.6]} 32... f6 {[%clk 0:00:53.9]} 33. exf6
{[%clk 0:00:54.3]} 33... Kf7 {[%clk 0:00:54]} 34. d7 {[%clk 0:00:38.7]} 34...
Kxf6 {[%clk 0:00:53.4]} 35. Rd6 {[%clk 0:00:39.1]} 35... Ke7 {[%clk 0:00:52.9]}
36. Rc6 {[%clk 0:00:38.6]} 36... Rxd7 {[%clk 0:00:39.3]} 37. Rxc5 {[%clk
0:00:39.1]} 37... Rd2 {[%clk 0:00:35.1]} 38. Rc7+ {[%clk 0:00:39.2]} 38... Kd6
{[%clk 0:00:35.3]} 39. Rxh7 {[%clk 0:00:39.3]} 39... Rxg2 {[%clk 0:00:35.3]} 40.
Kb3 {[%clk 0:00:36.5]} 40... a5 {[%clk 0:00:29.2]} 41. Ra7 {[%clk 0:00:36]}
41... Rxh2 {[%clk 0:00:27.3]} 42. Rxa5 {[%clk 0:00:36.6]} 42... Rh5 {[%clk
0:00:19.7]} 43. Ra6+ {[%clk 0:00:34.4]} 43... Ke7 {[%clk 0:00:18.2]} 44. Kxb4
{[%clk 0:00:35.3]} 44... g5 {[%clk 0:00:15.8]} 45. Ra7+ {[%clk 0:00:32.9]} 45...
Kf6 {[%clk 0:00:15.5]} 46. c5 {[%clk 0:00:33.2]} 46... Rh2 {[%clk 0:00:13.7]}
47. c4 {[%clk 0:00:31.6]} 47... g4 {[%clk 0:00:14]} 48. c6 {[%clk 0:00:32]}
48... g3 {[%clk 0:00:13.9]} 49. Ra8 {[%clk 0:00:28.6]} 49... Rh7 {[%clk
0:00:12.1]} 50. Rg8 {[%clk 0:00:19.1]} 50... Rg7 {[%clk 0:00:12]} 51. Rxg7
{[%clk 0:00:19.5]} 51... Kxg7 {[%clk 0:00:12.9]} 52. c7 {[%clk 0:00:20.4]} 52...
g2 {[%clk 0:00:13.5]} 53. c8=Q {[%clk 0:00:21.3]} 53... g1=Q {[%clk 0:00:14.3]}
54. Qxe6 {[%clk 0:00:20.8]} 54... Qb1+ {[%clk 0:00:14]} 55. Kc5 {[%clk 0:00:21]}
55... Qxa2 {[%clk 0:00:13.8]} 56. Qe5+ {[%clk 0:00:21.5]} 56... Kh6 {[%clk
0:00:12.5]} 57. Qf4+ {[%clk 0:00:21.2]} 57... Kh5 {[%clk 0:00:12.1]} 58. Qe5+
{[%clk 0:00:21.8]} 58... Kh6 {[%clk 0:00:11.9]} 59. Qd6+ {[%clk 0:00:22.1]}
59... Kh5 {[%clk 0:00:12.1]} 60. Kd5 {[%clk 0:00:22.3]} 60... Qd2+ {[%clk
0:00:11.4]} 61. Kc6 {[%clk 0:00:22.8]} 61... Qa2 {[%clk 0:00:11.3]} 62. c5
{[%clk 0:00:22.3]} 62... Qa4+ {[%clk 0:00:11.2]} 63. Kd5 {[%clk 0:00:22.5]}
63... Qa2+ {[%clk 0:00:11.2]} 64. Ke5 {[%clk 0:00:22.8]} 64... Qh2+ {[%clk
0:00:10.8]} 65. Ke6 {[%clk 0:00:23]} 65... Qh3+ {[%clk 0:00:10.4]} 66. Ke7
{[%clk 0:00:23.6]} 66... Qh4+ {[%clk 0:00:09.6]} 67. Kd7 {[%clk 0:00:24]} 67...
Qa4+ {[%clk 0:00:09.3]} 68. c6 {[%clk 0:00:24.1]} 68... Qb5 {[%clk 0:00:05.7]}
69. Kc7 {[%clk 0:00:23.3]} 69... Qa5+ {[%clk 0:00:05.6]} 70. Kd7 {[%clk
0:00:23.2]} 70... Qb5 {[%clk 0:00:05.9]} 71. Qd1+ {[%clk 0:00:23]} 71... Kg5
{[%clk 0:00:05.1]} 72. Qd2+ {[%clk 0:00:22.5]} 72... Kh5 {[%clk 0:00:04.8]} 73.
Kd6 {[%clk 0:00:23.1]} 73... Qb4+ {[%clk 0:00:04.3]} 74. Qxb4 {[%clk 0:00:23.2]}
1-0

[Event "Late-Titled-Tuesday-Blitz-June-18-2024"]
[Site "Chess.com"]
[Date "2024.06.18"]
[Round "2"]
[White "Lennis93"]
[Black "ChEsper99"]
[Result "0-1"]
[WhiteElo "2655"]
[BlackElo "2259"]
[TimeControl "180+1"]
[EndTime "14:20:31 PDT"]
[Termination "ChEsper99 won on time"]

1. a3 {[%clk 0:02:54.7]} 1... a6 {[%clk 0:02:56.7]} 2. d4 {[%clk 0:02:53.1]}
2... d5 {[%clk 0:02:55.6]} 3. Nf3 {[%clk 0:02:52.9]} 3... Nf6 {[%clk 0:02:55.5]}
4. g3 {[%clk 0:02:52.4]} 4... Bf5 {[%clk 0:02:47.8]} 5. Bg2 {[%clk 0:02:52.6]}
5... e6 {[%clk 0:02:45.3]} 6. c4 {[%clk 0:02:52]} 6... Be7 {[%clk 0:02:33.2]} 7.
Nc3 {[%clk 0:02:50.5]} 7... c6 {[%clk 0:02:31.3]} 8. c5 {[%clk 0:02:47.2]} 8...
h6 {[%clk 0:02:30.9]} 9. h4 {[%clk 0:02:45.4]} 9... Ne4 {[%clk 0:02:29.4]} 10.
Bf4 {[%clk 0:02:44.5]} 10... Nxc3 {[%clk 0:02:29.1]} 11. bxc3 {[%clk 0:02:44.3]}
11... Be4 {[%clk 0:02:28.8]} 12. Qb3 {[%clk 0:02:44]} 12... Ra7 {[%clk
0:02:14.6]} 13. O-O {[%clk 0:02:20.4]} 13... Nd7 {[%clk 0:02:10.7]} 14. h5
{[%clk 0:02:13.7]} 14... O-O {[%clk 0:02:01.2]} 15. Ne5 {[%clk 0:02:12.2]} 15...
Nxe5 {[%clk 0:01:56.9]} 16. Bxe4 {[%clk 0:02:07.4]} 16... Nd7 {[%clk 0:01:36.4]}
17. Bb1 {[%clk 0:01:54.4]} 17... Re8 {[%clk 0:01:25.3]} 18. Qc2 {[%clk 0:01:53]}
18... Nf8 {[%clk 0:01:25.7]} 19. Kg2 {[%clk 0:01:49.4]} 19... Bg5 {[%clk
0:01:26.3]} 20. e3 {[%clk 0:01:48.4]} 20... Bxf4 {[%clk 0:01:24.6]} 21. exf4
{[%clk 0:01:48.6]} 21... b6 {[%clk 0:01:17.2]} 22. cxb6 {[%clk 0:01:47.6]} 22...
Qxb6 {[%clk 0:01:18.1]} 23. Qa4 {[%clk 0:01:42.7]} 23... Qb5 {[%clk 0:01:16.3]}
24. Bc2 {[%clk 0:01:42.8]} 24... Qxa4 {[%clk 0:00:58.2]} 25. Bxa4 {[%clk
0:01:43.7]} 25... Rb8 {[%clk 0:00:56.6]} 26. Rab1 {[%clk 0:01:42.3]} 26... Rab7
{[%clk 0:00:56.9]} 27. Bc2 {[%clk 0:00:58.1]} 27... Rxb1 {[%clk 0:00:55.9]} 28.
Rxb1 {[%clk 0:00:57.5]} 28... Rxb1 {[%clk 0:00:56.5]} 29. Bxb1 {[%clk
0:00:58.4]} 29... Nd7 {[%clk 0:00:52.2]} 30. g4 {[%clk 0:00:58]} 30... f6 {[%clk
0:00:44.1]} 31. Kf3 {[%clk 0:00:57.3]} 31... Kf7 {[%clk 0:00:43.3]} 32. Bd3
{[%clk 0:00:46]} 32... a5 {[%clk 0:00:41.2]} 33. Ba6 {[%clk 0:00:46.1]} 33...
Ke7 {[%clk 0:00:38.9]} 34. Ke3 {[%clk 0:00:23.5]} 34... Kd6 {[%clk 0:00:36.6]}
35. Kd3 {[%clk 0:00:22.4]} 35... c5 {[%clk 0:00:22.2]} 36. Bb5 {[%clk
0:00:21.8]} 36... cxd4 {[%clk 0:00:09.7]} 37. cxd4 {[%clk 0:00:21.7]} 37... Nb6
{[%clk 0:00:09.2]} 38. Kc3 {[%clk 0:00:17.5]} 38... Na8 {[%clk 0:00:03]} 39. Kb3
{[%clk 0:00:16]} 39... Nb6 {[%clk 0:00:03.5]} 40. Kc3 {[%clk 0:00:07.3]} 40...
e5 {[%clk 0:00:03.1]} 41. Kd3 {[%clk 0:00:04.8]} 41... e4+ {[%clk 0:00:02.3]}
42. Kc3 {[%clk 0:00:03.2]} 42... Ke6 {[%clk 0:00:02.2]} 43. Bc6 {[%clk
0:00:01.6]} 43... Kd6 {[%clk 0:00:02.5]} 44. Bb5 {[%clk 0:00:02]} 44... Ke6
{[%clk 0:00:02.8]} 45. Kb3 {[%clk 0:00:02.5]} 45... Kd6 {[%clk 0:00:03.1]} 46.
Be8 {[%clk 0:00:02.5]} 46... Ke6 {[%clk 0:00:03.1]} 47. Bb5 {[%clk 0:00:02.4]}
47... Kd6 {[%clk 0:00:03.4]} 48. f5 {[%clk 0:00:02.8]} 48... Kc7 {[%clk
0:00:02.5]} 49. Kc3 {[%clk 0:00:02.6]} 49... Kd6 {[%clk 0:00:03.2]} 50. Kd2
{[%clk 0:00:02.9]} 50... Kc7 {[%clk 0:00:03.8]} 51. Ke3 {[%clk 0:00:03.4]} 51...
Kd6 {[%clk 0:00:04.4]} 52. f3 {[%clk 0:00:04]} 52... exf3 {[%clk 0:00:03.4]} 53.
Kxf3 {[%clk 0:00:04.9]} 53... Kc7 {[%clk 0:00:03]} 54. Ke3 {[%clk 0:00:04.7]}
54... Kd6 {[%clk 0:00:03.5]} 55. Kd3 {[%clk 0:00:05.2]} 55... Kc7 {[%clk
0:00:04.1]} 56. Kc3 {[%clk 0:00:05.6]} 56... Kd6 {[%clk 0:00:04.7]} 57. Kb3
{[%clk 0:00:06]} 57... Kc7 {[%clk 0:00:05.3]} 58. Ba6 {[%clk 0:00:05.9]} 58...
Kd6 {[%clk 0:00:05.5]} 59. Be2 {[%clk 0:00:06.1]} 59... Kc6 {[%clk 0:00:03.6]}
60. Kc3 {[%clk 0:00:04.5]} 60... Kd6 {[%clk 0:00:03.4]} 61. Bb5 {[%clk
0:00:04.3]} 61... Kc7 {[%clk 0:00:03.5]} 62. Kd2 {[%clk 0:00:04.7]} 62... Kd6
{[%clk 0:00:03.7]} 63. Ke3 {[%clk 0:00:05.1]} 63... Kc7 {[%clk 0:00:04]} 64. Kf4
{[%clk 0:00:05.5]} 64... Kd6 {[%clk 0:00:04.3]} 65. a4 {[%clk 0:00:04.7]} 65...
Kc7 {[%clk 0:00:03.1]} 66. g5 {[%clk 0:00:04.4]} 66... hxg5+ {[%clk 0:00:01.7]}
67. Kg4 {[%clk 0:00:04.2]} 67... Kd6 {[%clk 0:00:02.1]} 68. h6 {[%clk
0:00:04.5]} 68... gxh6 {[%clk 0:00:02.5]} 69. Kh5 {[%clk 0:00:05.1]} 69... Ke7
{[%clk 0:00:02.7]} 70. Kxh6 {[%clk 0:00:05.3]} 70... g4 {[%clk 0:00:03.1]} 71.
Kh5 {[%clk 0:00:05.6]} 71... g3 {[%clk 0:00:03.5]} 72. Bf1 {[%clk 0:00:05.9]}
72... Nxa4 {[%clk 0:00:03]} 73. Kg4 {[%clk 0:00:06.5]} 73... Nc3 {[%clk
0:00:03.2]} 74. Kxg3 {[%clk 0:00:06.2]} 74... a4 {[%clk 0:00:03.4]} 0-1

[Event "Late-Titled-Tuesday-Blitz-June-18-2024"]
[Site "Chess.com"]
[Date "2024.06.18"]
[Round "2"]
[White "DanylaBagrov"]
[Black "mestrefeitosa19"]
[Result "1/2-1/2"]
[WhiteElo "2507"]
[BlackElo "2303"]
[TimeControl "180+1"]
[EndTime "14:20:55 PDT"]
[Termination "Game drawn - insufficient material"]

1. e4 {[%clk 0:03:00.9]} 1... e5 {[%clk 0:02:59.8]} 2. Nf3 {[%clk 0:03:00.5]}
2... Nc6 {[%clk 0:03:00.1]} 3. d3 {[%clk 0:03:01.1]} 3... Nf6 {[%clk 0:02:59.3]}
4. Be2 {[%clk 0:03:00.5]} 4... Bc5 {[%clk 0:02:59.7]} 5. O-O {[%clk 0:02:58.7]}
5... h6 {[%clk 0:02:58.8]} 6. c3 {[%clk 0:02:59.1]} 6... O-O {[%clk 0:02:58.6]}
7. d4 {[%clk 0:02:52.4]} 7... Bb6 {[%clk 0:02:52.6]} 8. dxe5 {[%clk 0:02:20]}
8... Nxe4 {[%clk 0:02:50.4]} 9. Qc2 {[%clk 0:02:18.3]} 9... d5 {[%clk
0:02:47.6]} 10. exd6 {[%clk 0:02:14]} 10... Nxd6 {[%clk 0:02:46.3]} 11. Bf4
{[%clk 0:02:08.6]} 11... Bf5 {[%clk 0:02:40.1]} 12. Bd3 {[%clk 0:01:51.8]} 12...
Qf6 {[%clk 0:02:28.9]} 13. Bxd6 {[%clk 0:01:44.4]} 13... Bxd3 {[%clk 0:02:27.6]}
14. Qxd3 {[%clk 0:01:43.9]} 14... cxd6 {[%clk 0:02:28]} 15. Nbd2 {[%clk
0:01:38]} 15... Ne5 {[%clk 0:02:25.3]} 16. Qd5 {[%clk 0:01:33.9]} 16... Rab8
{[%clk 0:02:04]} 17. Rad1 {[%clk 0:01:27.6]} 17... Rfd8 {[%clk 0:02:01.6]} 18.
Rfe1 {[%clk 0:01:19.9]} 18... Qf5 {[%clk 0:01:13.7]} 19. Qe4 {[%clk 0:00:43.5]}
19... Qf6 {[%clk 0:01:06.6]} 20. Re2 {[%clk 0:00:37.8]} 20... Re8 {[%clk
0:01:04.2]} 21. Kh1 {[%clk 0:00:21.5]} 21... Ng4 {[%clk 0:00:48.7]} 22. Qxe8+
{[%clk 0:00:16.8]} 22... Rxe8 {[%clk 0:00:49.6]} 23. Rxe8+ {[%clk 0:00:17.4]}
23... Kh7 {[%clk 0:00:50.3]} 24. Ne4 {[%clk 0:00:18]} 24... Qg6 {[%clk
0:00:39.8]} 25. h3 {[%clk 0:00:09.5]} 25... Qxe4 {[%clk 0:00:35.9]} 26. Rxe4
{[%clk 0:00:08.6]} 26... Nxf2+ {[%clk 0:00:36.2]} 27. Kh2 {[%clk 0:00:09.2]}
27... Nxe4 {[%clk 0:00:36.6]} 28. a4 {[%clk 0:00:07.1]} 28... Nf2 {[%clk
0:00:36.4]} 29. Rd2 {[%clk 0:00:06.6]} 29... Ne4 {[%clk 0:00:36.3]} 30. Re2
{[%clk 0:00:07.3]} 30... f5 {[%clk 0:00:35.1]} 31. Nd4 {[%clk 0:00:07.8]} 31...
g6 {[%clk 0:00:33.2]} 32. Nc2 {[%clk 0:00:06.2]} 32... Nc5 {[%clk 0:00:31.6]}
33. a5 {[%clk 0:00:05]} 33... Bc7 {[%clk 0:00:29.8]} 34. Ne3 {[%clk 0:00:05.4]}
34... Ne4 {[%clk 0:00:28]} 35. Nd5 {[%clk 0:00:05.3]} 35... Bxa5 {[%clk
0:00:27.7]} 36. b4 {[%clk 0:00:05.1]} 36... Bd8 {[%clk 0:00:27.6]} 37. c4 {[%clk
0:00:05.5]} 37... a5 {[%clk 0:00:26.2]} 38. b5 {[%clk 0:00:05.3]} 38... b6
{[%clk 0:00:25.7]} 39. Re3 {[%clk 0:00:04.2]} 39... Kg7 {[%clk 0:00:25.9]} 40.
Rd3 {[%clk 0:00:04.8]} 40... Kf7 {[%clk 0:00:25.9]} 41. Nc3 {[%clk 0:00:05.1]}
41... Nc5 {[%clk 0:00:24.4]} 42. Rd5 {[%clk 0:00:03.7]} 42... Ke6 {[%clk
0:00:23.6]} 43. Kg1 {[%clk 0:00:03.3]} 43... a4 {[%clk 0:00:23.9]} 44. Rd2
{[%clk 0:00:03.2]} 44... Ke5 {[%clk 0:00:22.9]} 45. Ra2 {[%clk 0:00:03.7]} 45...
Kd4 {[%clk 0:00:22.5]} 46. Nxa4 {[%clk 0:00:04.2]} 46... Kxc4 {[%clk 0:00:22.6]}
47. Nxc5 {[%clk 0:00:04.5]} 47... dxc5 {[%clk 0:00:21.7]} 48. Rb2 {[%clk
0:00:05]} 48... Bf6 {[%clk 0:00:21.2]} 49. Rb1 {[%clk 0:00:05.7]} 49... Kc3
{[%clk 0:00:21.7]} 50. Kf2 {[%clk 0:00:05.6]} 50... c4 {[%clk 0:00:22]} 51. Ke3
{[%clk 0:00:05.4]} 51... Kc2 {[%clk 0:00:21.5]} 52. Rb4 {[%clk 0:00:05.2]} 52...
c3 {[%clk 0:00:20.9]} 53. Rc4 {[%clk 0:00:05.9]} 53... Kb2 {[%clk 0:00:21]} 54.
Kd3 {[%clk 0:00:06.4]} 54... Be5 {[%clk 0:00:20.4]} 55. Rc6 {[%clk 0:00:06.5]}
55... Bg7 {[%clk 0:00:19.2]} 56. h4 {[%clk 0:00:06.2]} 56... Kb3 {[%clk
0:00:19.1]} 57. Rxb6 {[%clk 0:00:04.1]} 57... Kb2 {[%clk 0:00:14]} 58. Rc6
{[%clk 0:00:04.5]} 58... Bf6 {[%clk 0:00:14]} 59. b6 {[%clk 0:00:05]} 59... Bxh4
{[%clk 0:00:13.8]} 60. b7 {[%clk 0:00:03.7]} 60... Bg3 {[%clk 0:00:14]} 61. Rxc3
{[%clk 0:00:04.4]} 61... g5 {[%clk 0:00:11.3]} 62. Rc6 {[%clk 0:00:04.8]} 62...
h5 {[%clk 0:00:11.6]} 63. Rg6 {[%clk 0:00:04.7]} 63... g4 {[%clk 0:00:10.5]} 64.
Rg5 {[%clk 0:00:04]} 64... h4 {[%clk 0:00:10.7]} 65. Rxf5 {[%clk 0:00:04]} 65...
h3 {[%clk 0:00:11.3]} 66. gxh3 {[%clk 0:00:04.8]} 66... gxh3 {[%clk 0:00:12.2]}
67. Rh5 {[%clk 0:00:04.5]} 67... h2 {[%clk 0:00:12.5]} 68. Kc4 {[%clk
0:00:03.1]} 68... Kc2 {[%clk 0:00:12.9]} 69. Kb5 {[%clk 0:00:02.5]} 69... Kd2
{[%clk 0:00:13.6]} 70. Kc6 {[%clk 0:00:02.8]} 70... Ke2 {[%clk 0:00:14.1]} 71.
Kd7 {[%clk 0:00:02.8]} 71... Kf2 {[%clk 0:00:13.9]} 72. Kc8 {[%clk 0:00:02.5]}
72... Kg1 {[%clk 0:00:13.8]} 73. Rg5 {[%clk 0:00:02.2]} 73... Kh1 {[%clk
0:00:11.3]} 74. Kd8 {[%clk 0:00:01]} 74... Bf4 {[%clk 0:00:09.7]} 75. Rg4 {[%clk
0:00:01.5]} 75... Bd6 {[%clk 0:00:09]} 76. Kd7 {[%clk 0:00:02.1]} 76... Be5
{[%clk 0:00:09.3]} 77. Rg6 {[%clk 0:00:02.5]} 77... Bf4 {[%clk 0:00:09.7]} 78.
Rd6 {[%clk 0:00:03]} 78... Bxd6 {[%clk 0:00:06.7]} 79. Kxd6 {[%clk 0:00:03.9]}
79... Kg2 {[%clk 0:00:07]} 80. b8=Q {[%clk 0:00:04.5]} 80... h1=Q {[%clk
0:00:07.9]} 81. Qb7+ {[%clk 0:00:05.1]} 81... Kh2 {[%clk 0:00:08.1]} 82. Qh7+
{[%clk 0:00:05.2]} 82... Kg2 {[%clk 0:00:08.6]} 83. Qe4+ {[%clk 0:00:05.7]}
83... Kh2 {[%clk 0:00:08.6]} 84. Qf4+ {[%clk 0:00:06.1]} 84... Kg2 {[%clk
0:00:09.5]} 85. Ke5 {[%clk 0:00:06.3]} 85... Qh2 {[%clk 0:00:09.4]} 86. Qxh2+
{[%clk 0:00:06.1]} 86... Kxh2 {[%clk 0:00:09.8]} 1/2-1/2

[Event "Late-Titled-Tuesday-Blitz-June-18-2024"]
[Site "Chess.com"]
[Date "2024.06.18"]
[Round "2"]
[White "lucasran"]
[Black "XDPS"]
[Result "0-1"]
[WhiteElo "2593"]
[BlackElo "2894"]
[TimeControl "180+1"]
[EndTime "14:21:04 PDT"]
[Termination "XDPS won on time"]

1. c4 {[%clk 0:02:59.9]} 1... e6 {[%clk 0:02:59.8]} 2. g3 {[%clk 0:02:56.6]}
2... d5 {[%clk 0:03:00.4]} 3. Bg2 {[%clk 0:02:57.2]} 3... h6 {[%clk 0:03:01]} 4.
Nf3 {[%clk 0:02:57.4]} 4... Nf6 {[%clk 0:03:01.6]} 5. O-O {[%clk 0:02:57.8]}
5... Bd6 {[%clk 0:03:02.3]} 6. b3 {[%clk 0:02:58.3]} 6... O-O {[%clk 0:03:03]}
7. Bb2 {[%clk 0:02:59]} 7... b6 {[%clk 0:03:03.5]} 8. d4 {[%clk 0:02:59.4]} 8...
Bb7 {[%clk 0:03:03.9]} 9. Nc3 {[%clk 0:02:59.3]} 9... a5 {[%clk 0:03:02.3]} 10.
Qc2 {[%clk 0:02:59.3]} 10... Nc6 {[%clk 0:03:01.8]} 11. a3 {[%clk 0:02:55.6]}
11... Re8 {[%clk 0:03:01.6]} 12. Rad1 {[%clk 0:02:53.1]} 12... Ne7 {[%clk
0:02:59.7]} 13. Ne5 {[%clk 0:02:51.4]} 13... Qc8 {[%clk 0:02:55.2]} 14. Nb5
{[%clk 0:02:19.1]} 14... Qb8 {[%clk 0:02:33.9]} 15. cxd5 {[%clk 0:02:16.2]}
15... exd5 {[%clk 0:02:33.8]} 16. Rc1 {[%clk 0:02:05.1]} 16... c6 {[%clk
0:02:19.9]} 17. Nxd6 {[%clk 0:02:00.9]} 17... Qxd6 {[%clk 0:02:20.8]} 18. a4
{[%clk 0:01:50.9]} 18... Rac8 {[%clk 0:02:16.7]} 19. Nd3 {[%clk 0:01:39.2]}
19... Ng6 {[%clk 0:02:11.6]} 20. e3 {[%clk 0:01:37.7]} 20... Ne4 {[%clk
0:02:11.1]} 21. Ne5 {[%clk 0:01:32.5]} 21... Nxe5 {[%clk 0:02:10.1]} 22. dxe5
{[%clk 0:01:33.4]} 22... Qe7 {[%clk 0:02:10.4]} 23. Bxe4 {[%clk 0:01:31.7]}
23... dxe4 {[%clk 0:02:11.3]} 24. Qxe4 {[%clk 0:01:32.6]} 24... c5 {[%clk
0:02:12]} 25. Qg4 {[%clk 0:01:29.2]} 25... Bd5 {[%clk 0:02:11.3]} 26. Rfd1
{[%clk 0:01:17.3]} 26... Be6 {[%clk 0:02:04.9]} 27. Qf4 {[%clk 0:01:10.5]} 27...
Bxb3 {[%clk 0:02:03.3]} 28. Rd6 {[%clk 0:01:11.1]} 28... Rb8 {[%clk 0:01:55]}
29. Rc3 {[%clk 0:00:57.5]} 29... Be6 {[%clk 0:01:53.2]} 30. Rcd3 {[%clk
0:00:56.2]} 30... Qg5 {[%clk 0:01:51.2]} 31. Qxg5 {[%clk 0:00:28]} 31... hxg5
{[%clk 0:01:52.1]} 32. f4 {[%clk 0:00:28.9]} 32... Bf5 {[%clk 0:01:48.6]} 33.
Rb3 {[%clk 0:00:26.9]} 33... Re6 {[%clk 0:01:45.2]} 34. Bc3 {[%clk 0:00:23.2]}
34... Bc2 {[%clk 0:01:13.2]} 35. Rb2 {[%clk 0:00:24]} 35... Bxa4 {[%clk
0:01:14]} 36. Bxa5 {[%clk 0:00:24.7]} 36... b5 {[%clk 0:01:09.8]} 37. Bc7 {[%clk
0:00:17.5]} 37... Rc8 {[%clk 0:01:06.4]} 38. Ba5 {[%clk 0:00:08.5]} 38... b4
{[%clk 0:00:55.8]} 39. Kf2 {[%clk 0:00:09.2]} 39... gxf4 {[%clk 0:00:53.1]} 40.
gxf4 {[%clk 0:00:09.5]} 40... b3 {[%clk 0:00:30.5]} 41. Bc3 {[%clk 0:00:09.6]}
41... c4 {[%clk 0:00:31.1]} 42. f5 {[%clk 0:00:10.1]} 42... Re7 {[%clk
0:00:29.2]} 43. e4 {[%clk 0:00:07.4]} 43... Bc6 {[%clk 0:00:28.3]} 44. Ke3
{[%clk 0:00:07.6]} 44... Ra7 {[%clk 0:00:28.4]} 45. Rdd2 {[%clk 0:00:07.6]}
45... Ra1 {[%clk 0:00:20.5]} 46. Rg2 {[%clk 0:00:06.9]} 46... Rc1 {[%clk
0:00:19.8]} 47. Bd4 {[%clk 0:00:03.5]} 47... Re1+ {[%clk 0:00:18.2]} 48. Rbe2
{[%clk 0:00:03.9]} 48... Rxe2+ {[%clk 0:00:18.3]} 49. Rxe2 {[%clk 0:00:04.8]}
49... Bb5 {[%clk 0:00:17.8]} 50. Bc3 {[%clk 0:00:04.8]} 50... Rd8 {[%clk
0:00:17.6]} 51. Rd2 {[%clk 0:00:05.5]} 51... Ra8 {[%clk 0:00:17.4]} 52. Kf4
{[%clk 0:00:02.9]} 52... Kh7 {[%clk 0:00:17.2]} 53. e6 {[%clk 0:00:03.3]} 53...
fxe6 {[%clk 0:00:17.1]} 54. fxe6 {[%clk 0:00:04.2]} 54... Re8 {[%clk 0:00:17.7]}
55. Ke5 {[%clk 0:00:04.9]} 55... Bc6 {[%clk 0:00:17.2]} 56. Rg2 {[%clk
0:00:02.5]} 56... Bd7 {[%clk 0:00:13.6]} 57. Kf4 {[%clk 0:00:02.8]} 57... Bxe6
{[%clk 0:00:13.7]} 58. Rxg7+ {[%clk 0:00:03.3]} 58... Kh6 {[%clk 0:00:14.3]} 59.
Rg2 {[%clk 0:00:03.4]} 59... Bf7 {[%clk 0:00:14.3]} 60. e5 {[%clk 0:00:03.3]}
60... Bg6 {[%clk 0:00:14.3]} 61. Re2 {[%clk 0:00:02.7]} 61... Re6 {[%clk
0:00:14.2]} 62. Rg2 {[%clk 0:00:02.5]} 62... Kg7 {[%clk 0:00:13.9]} 63. Rd2
{[%clk 0:00:03.1]} 63... Kf7 {[%clk 0:00:14]} 64. Rd7+ {[%clk 0:00:03.6]} 64...
Ke8 {[%clk 0:00:14]} 65. Rc7 {[%clk 0:00:04.2]} 65... Bd3 {[%clk 0:00:13.4]} 66.
Rb7 {[%clk 0:00:04.3]} 66... Rh6 {[%clk 0:00:13.5]} 67. Kg5 {[%clk 0:00:03.7]}
67... Rxh2 {[%clk 0:00:13.6]} 68. Kf6 {[%clk 0:00:04.1]} 68... Rh6+ {[%clk
0:00:14.2]} 69. Kg5 {[%clk 0:00:04.8]} 69... Rc6 {[%clk 0:00:14.7]} 70. Rb8+
{[%clk 0:00:03.2]} 70... Kd7 {[%clk 0:00:15.1]} 71. Rb7+ {[%clk 0:00:03.2]}
71... Ke6 {[%clk 0:00:14.9]} 72. Kf4 {[%clk 0:00:03.7]} 72... Kd5 {[%clk
0:00:14.7]} 73. Ke3 {[%clk 0:00:04]} 73... Rh6 {[%clk 0:00:13.9]} 74. Rb5+
{[%clk 0:00:04.5]} 74... Kc6 {[%clk 0:00:14.1]} 75. Ra5 {[%clk 0:00:05.1]} 75...
Rh3+ {[%clk 0:00:14.6]} 76. Kd4 {[%clk 0:00:05.7]} 76... Rh4+ {[%clk 0:00:15.3]}
77. Ke3 {[%clk 0:00:06.2]} 77... Re4+ {[%clk 0:00:16]} 78. Kf3 {[%clk
0:00:06.2]} 78... Re2 {[%clk 0:00:16.9]} 79. Ra6+ {[%clk 0:00:04.9]} 79... Kb5
{[%clk 0:00:17]} 80. Ra5+ {[%clk 0:00:05.6]} 80... Kb6 {[%clk 0:00:17.7]} 81.
Ra8 {[%clk 0:00:02.7]} 81... Rc2 {[%clk 0:00:18]} 82. Rb8+ {[%clk 0:00:02.7]}
82... Kc7 {[%clk 0:00:18.1]} 83. Ba5+ {[%clk 0:00:01.7]} 83... Kxb8 {[%clk
0:00:18]} 84. e6 {[%clk 0:00:01.8]} 84... Bg6 {[%clk 0:00:18.3]} 85. e7 {[%clk
0:00:02.1]} 85... Be8 {[%clk 0:00:19.2]} 0-1